Workbook

Sheet Sheet1
B2: Heifer Purchase Financial Stress Analysis Tool Eric A. DeVuyst Hannah Shear Derrel Peel Department of Agricultural Economics Oklahoma State University eric.devuyst@okstate.edu August 2023, Release version 1.0
B3: Head purchased | E3: 100 | I3: Bred
B4: Heifer purchase price $/head | E4: =600*3 -> 1800 | H4: Anticipated mature cow weight lbs. | L4: 1375
B5: Down payment $/head | E5: 400 | H5: Heifer retention rate % | L5: 0.5
B6: Interest rate | E6: 0.09 | H6: Notes: Cells in light green are user entered. Blue, Red, Green and Yellow are calculated. Enable macros to see calculations.
B7: Term (years) | E7: 5 | T7: Calculation checks
B8: Age | C8: Steer weaning weight Bir et al. lbs | D8: Steer weaning weight lbs | E8: Heifer weaning weight Bir et al. lbs | F8: Heifer weaning weight lbs | G8: Annual feed cost $/head* | H8: Annual other costs $/head | I8: Streer sale price $/cwt | J8: Hiefer sale price $/cwt | K8: % Calf crop | L8: % Cull by cow age | M8: Cull cow price $/head | N8: End of Year Head Remaining (Culled) | O8: TOTAL Operating cash flow less down payment | P8: TOTAL Principal and interest | Q8: TOTAL Cash surplus or deficit | U8: steer | V8: heifer | W8: cull | X8: rev | Y8: cost | Z8: operating
B9: 1 | C9: -- | D9: -- | E9: -- | F9: -- | G9: 600 | H9: 25 | I9: -- | J9: -- | K9: -- | L9: 0 | M9: 1400 | N9: 100 (0) | O9: 0 | P9: 0 | Q9: 0 | T9: inc downpay | U9: =0 -> 0 | V9: 0 | W9: =L9*M9 -> 0 | X9: =W9 -> 0 | Y9: =G9+H9 -> 625 | Z9: =X9-Y9-E5 -> -1025 | AA9: =Z9+P9 -> -1025
B10: 2 | C10: 449 | D10: 449 | E10: 434 | F10: 434 | G10: 600 | H10: 50 | I10: 250 | J10: 235 | K10: 0.82 | L10: 0.25 | M10: =900*0.9 -> 810 | N10: 75 (25) | O10: 3088 | P10: -35993 | Q10: -32905 | T10: no retention | U10: =D10*I10/100*0.5*K10 -> 460.225 | V10: =F10*J10/100*0.5*K10 -> 418.159 | W10: 202.5 | X10: =SUM(U10:W10) -> 1080.884 | Y10: 650 | Z10: =X10-Y10 -> 430.884 | AA10: =Z10+P10 -> -35562.116
B11: 3 | C11: 466 | D11: 466 | E11: 451 | F11: 451 | G11: 625 | H11: 50 | I11: 243 | J11: =I11-15 -> 228 | K11: 0.86 | L11: 0.1 | M11: =1200*0.9 -> 1080 | N11: 67 (8) | O11: 11115 | P11: -35993 | Q11: -24878 | U11: 486.9234 | V11: =F11*J11/100*0.5*K11*(1-$L$5) -> 221.0802 | W11: 108 | X11: =SUM(U11:W11) -> 816.0036 | Y11: 675 | Z11: =X11-Y11 -> 141.0036 | AA11: =Z11+P11 -> -35851.9964
B12: 4 | C12: 480 | D12: 480 | E12: 465 | F12: 465 | G12: 650 | H12: 50 | I12: 238 | J12: =I12-15 -> 223 | K12: 0.87 | L12: 0.1 | M12: =1250*0.9 -> 1125 | N12: 60 (7) | O12: 9381 | P12: -35993 | Q12: -26612 | U12: 496.944 | V12: 225.536625 | W12: 112.5 | X12: =SUM(U12:W12) -> 834.980625 | Y12: 700 | Z12: =X12-Y12 -> 134.980625 | AA12: =Z12+P12 -> -35858.01938
B13: 5 | C13: 491 | D13: 491 | E13: 475 | F13: 475 | G13: 675 | H13: 50 | I13: 235 | J13: 220 | K13: 0.87 | L13: 0.12 | M13: =1300*0.9 -> 1170 | N13: 53 (7) | O13: 8442 | P13: -35993 | Q13: -27551 | U13: 501.92475 | V13: 227.2875 | W13: 140.4 | X13: 869.61225 | Y13: 725 | Z13: 144.61225 | AA13: -35848.38775
B14: 6 | C14: 497 | D14: 497 | E14: 482 | F14: 482 | G14: 700 | H14: 50 | I14: 230 | J14: 215 | K14: 0.87 | L14: 0.2 | M14: =1375*0.9 -> 1237.5 | N14: 42 (11) | O14: 12162.5 | P14: -35993 | Q14: -23830.5 | U14: 497.2485 | V14: 225.39525 | W14: 247.5 | X14: 970.14375 | Y14: 750 | Z14: 220.14375 | AA14: -35772.85625
B15: 7 | C15: 499 | D15: 499 | E15: 484 | F15: 484 | G15: 700 | H15: 50 | I15: 225 | J15: 210 | K15: 0.87 | L15: 0.3 | M15: =1375*0.9 -> 1237.5 | N15: 29 (13) | O15: 14385.5 | P15: 0 | Q15: 14385.5 | U15: 488.39625 | V15: 221.067 | W15: 371.25 | X15: 1080.71325 | Y15: 750 | Z15: 330.71325 | AA15: 330.71325
B16: 8 | C16: 497 | D16: 497 | E16: 482 | F16: 482 | G16: 700 | H16: 50 | I16: 226 | J16: 211 | K16: 0.87 | L16: 0.4 | M16: =1375*0.9 -> 1237.5 | N16: 17 (12) | O16: 13684 | P16: 0 | Q16: 13684 | U16: 488.6007 | V16: 221.20185 | W16: 495 | X16: 1204.80255 | Y16: 750 | Z16: 454.80255 | AA16: 454.80255
B17: 9 | C17: 492 | D17: 492 | E17: 477 | F17: 477 | G17: 725 | H17: 50 | I17: 228 | J17: 213 | K17: 0.87 | L17: 0.75 | M17: =1375*0.9 -> 1237.5 | N17: 4 (13) | O17: 14964.5 | P17: 0 | Q17: 14964.5 | U17: 487.9656 | V17: 220.982175 | W17: 928.125 | X17: 1637.072775 | Y17: 775 | Z17: 862.072775 | AA17: 862.072775
B18: 10 | C18: 483 | D18: 483 | E18: 468 | F18: 468 | G18: 750 | H18: 50 | I18: 236 | J18: 221 | K18: 0.86 | L18: 1 | M18: =1375*0.9 -> 1237.5 | N18: 0 (4) | O18: 4600 | P18: 0 | Q18: 4600 | U18: 490.1484 | V18: 222.3702 | W18: 1237.5 | X18: 1950.0186 | Y18: 800 | Z18: 1150.0186 | AA18: 1150.0186
Q19: 21282.5
B20: Balance Sheet and Ratio Analysis
B23: Enter Information as of BEFORE Heifer Purchase
B24: Assets | I24: Liabilities and Equity
C25: Current Assets | F25: 1325000 | J25: Current Liabilities | M25: 1325000
C26: Intermediate Assets | F26: 1800000 | J26: Intermediate Liabilities | M26: 2400000
C27: Long-term Assets | F27: 15125000 | J27: Long-term Liabilities | M27: 10587500
C28: Total Assets | F28: 4080000 | J28: Total Liabilities | M28: 772000
J29: Owner' Equity | M29: 3308000
C31: Before Purchase | G31: After Purcahse | K31: Beginning current ratio at warning level.
C32: Current Ratio | E32: 1 | G32: Current Ratio | I32: 0.9700000286 | K32: Ending current ratio at warning level.
C33: Debt-to-Asset | E33: 0.7799999714 | G33: Debt-to-Asset | I33: 0.7900000215 | K33: Beginning Debt-to-Asset at warning level.
C34: Debt-to-Equity | E34: 3.630000114 | G34: Debt-to-Equity | I34: 3.670000076 | K34: Ending Debt-to-Asset at warning level.
K35: Beginning Debt-to-Equity at warning level.
C36: Ratio benchmarks | F36: Red | G36: Yellow | H36: Green | K36: Ending Debt-to-Equity at warning level.
C37: Current Ratio | F37: <1.3 | G37: 1.3-2.0 | H37: >2
C38: D/A | F38: >0.6 | G38: 0.3-0.6 | H38: <0.3
C39: D/E | F39: >1.5 | G39: 0.43-1.5 | H39: <0.43
C40: https://extension.umn.edu/farm-finance/ratios-and-measurements
